[Event "Marienbad B1-IM 2024"]
[Site "Marianske Lazne"]
[Date "2024.01.15"]
[Round "3.14"]
[White "Lima, Stefan Moisei VIeira"]
[Black "Kulkarni Bhakti"]
[Result "1/2-1/2"]
[ECO "A01"]
[WhiteElo "2173"]
[BlackElo "2364"]
[Annotator "ChessBase"]
[PlyCount "91"]
[EventDate "2024.01.10"]
[EventType "tourn"]
[EventCountry "CZE"]
[SourceTitle "playchess.com"]
[Source "ChessBase"]
[SourceQuality "1"]
[TimeControl "40/5400+30:1800+30"]

1. b3 {[%emt 0:00:02]} Nf6 {[%emt 0:04:54]} 2. Bb2 {[%emt 0:00:31]} g6 {[%emt 0:00:42]} 3. Nf3 {[%emt 0:01:51]} Bg7 {[%emt 0:00:17]} 4. c4 {[%emt 0:00:34]} O-O {[%emt 0:00:47]} 5. g3 {[%emt 0:00:07]} c6 {[%emt 0:12:15]} 6. Bg2 {[%emt 0:01:53]} d5 {[%emt 0:00:10]} 7. O-O {[%emt 0:00:42]} Re8 {[%emt 0:00:23]} 8. Qc2 {[%emt 0:07:25]} Bf5 {[%emt 0:05:39]} 9. d3 {[%emt 0:01:47]} Na6 {[%emt 0:00:41]} 10. a3 {[%emt 0:04:48]} Qd7 {[%emt 0:04:10]} 11. Re1 {[%emt 0:08:19]} Bh3 {[%emt 0:04:42]} 12. Ne5 {[%emt 0:08:09]} Qf5 {[%emt 0:02:43]} 13. e4 {[%emt 0:06:04]} dxe4 {[%emt 0:02:43]} 14. dxe4 {[%emt 0:00:09]} Qe6 {[%emt 0:01:09]} 15. Nf3 {[%emt 0:05:07]} Bxg2 {[%emt 0:02:08]} 16. Kxg2 {[%emt 0:00:30]} Rad8 {[%emt 0:03:22]} 17. e5 {[%emt 0:11:41]} Nh5 {[%emt 0:00:44]} 18. Nd4 {[%emt 0:09:53]} Qc8 {[%emt 0:02:22]} 19. Nd2 {[%emt 0:01:01]} Nc5 {[%emt 0:03:44]} 20. h3 {[%emt 0:07:32]} Bh6 {[%emt 0:13:10]} 21. N2f3 {[%emt 0:00:59]} Ng7 {[%emt 0:00:36]} 22. Rad1 {[%emt 0:00:54]} Nce6 {[%emt 0:03:43]} 23. Bc1 {[%emt 0:05:20]} Bxc1 {[%emt 0:01:04]} 24. Qxc1 {[%emt 0:00:02]} Nxd4 {[%emt 0:01:31]} 25. Nxd4 {[%emt 0:00:02]} c5 {[%emt 0:00:41]} 26. Nc2 {[%emt 0:06:08]} Qc6+ {[%emt 0:01:49]} 27. f3 {[%emt 0:01:45]} Nf5 {[%emt 0:02:23]} 28. Qb2 {[%emt 0:01:47]} Rd7 {[%emt 0:11:28]} 29. Rxd7 {[%emt 0:02:49]} Qxd7 {[%emt 0:00:02]} 30. Ne3 {[%emt 0:00:28]} Nxe3+ {[%emt 0:02:04]} 31. Rxe3 {[%emt 0:00:02]} e6 {[%emt 0:00:47]} 32. b4 {[%emt 0:02:07]} b6 {[%emt 0:01:38]} 33. bxc5 {[%emt 0:00:43]} bxc5 {[%emt 0:00:05]} 34. h4 {[%emt 0:01:02]} Rd8 {[%emt 0:02:35]} 35. Rb3 {[%emt 0:01:01]} Kg7 {[%emt 0:01:05]} 36. Qc1 {[%emt 0:00:57]} Qd2+ {[%emt 0:04:34]} 37. Qxd2 {[%emt 0:00:07]} Rxd2+ {[%emt 0:00:04]} 38. Kf1 {[%emt 0:00:45]} Rc2 {[%emt 0:00:06]} 39. Rb7 {[%emt 0:00:01]} a6 {[%emt 0:02:15]} 40. Rb6 {[%emt 0:03:49]} Rxc4 {[%emt 0:00:52]} 41. Rxa6 {[%emt 0:30:22]} Rc2 {[%emt 0:30:33]} 42. Rc6 {[%emt 0:00:31]} Rc3 {[%emt 0:03:12]} 43. Kf2 {[%emt 0:00:37]} Rxa3 {[%emt 0:00:14]} 44. Rxc5 {[%emt 0:00:06]} h5 {[%emt 0:00:37]} 45. Rb5 {[%emt 0:00:15]} Ra2+ {[%emt 0:01:21]} 46. Ke3 {[%emt 0:00:18]} 1/2-1/2

[Event "Marienbad B1-IM 2024"]
[Site "Marianske Lazne"]
[Date "2024.01.15"]
[Round "3.15"]
[White "Dobrowolski, Piotr"]
[Black "Hak, David"]
[Result "1-0"]
[ECO "B34"]
[WhiteElo "2401"]
[BlackElo "2310"]
[Annotator "TA"]
[PlyCount "157"]
[EventDate "2024.01.10"]
[EventType "tourn"]
[EventCountry "CZE"]
[SourceTitle "playchess.com"]
[Source "ChessBase"]
[SourceQuality "1"]
[TimeControl "40/5400+30:1800+30"]

{[%evp 17,157,16,20,10,68,58,62,27,114,113,116,100,93,91,93,68,102,87,108,64,152,173,364,138,147,138,146,123,119,104,103,61,57,29,109,90,332,343,472,481,610,417,391,256,254,259,270,249,265,209,278,284,284,281,315,278,302,298,301,298,294,290,279,271,370,362,412,407,392,379,447,456,405,446,441,398,375,387,304,0,415,349,409,374,585,526,690,690,665,673,681,681,897,902,629,629,695,643,1094,1120,873,769,1341,705,985,962,962,52,52,52,52,52,52,52,52,52,52,52,52,52,52,8,29964,29967,29976,29977,29977,29977,29977,29978,29977,29979,29979,29980,29980,29981,29981,29982,29982,29983,29987,29985]} 1. e4 {[%emt 0:00:11]} c5 {[%emt 0:00:07]} 2. Nf3 {[%emt 0:00:30]} Nc6 {[%emt 0:00:06]} 3. d4 {[%emt 0:00:34]} cxd4 {[%emt 0:00:05]} 4. Nxd4 {[%emt 0:00:05]} g6 {[%emt 0:00:13]} 5. Nc3 {[%emt 0:01:34]} Bg7 {[%emt 0:00:09]} 6. Be3 {[%emt 0:00:14]} Nf6 {[%emt 0:00:13]} 7. Nb3 {[%emt 0:00:31]} O-O {[%emt 0:00:45]} 8. Qd2 {[%emt 0:00:14]} d6 {[%emt 0:29:43]} 9. f3 {[%emt 0:00:33]} Be6 {[%emt 0:04:56]} 10. O-O-O {[%emt 0:01:21] B76: Sicilian Dragon: Yugoslav Attack, 9 g4 and 9 0-0-0.} a5 {[%emt 0:10:06]} ({Black should play} 10... Rc8 $11) 11. a4 {[%emt 0:00:39]} Nd7 {[%emt 0:06:30]} 12. Nd5 {[%emt 0:23:31] [#] White is slightly better.} Bxd5 $146 {[%emt 0:01:20]} (12... Nb4 $1 $11 {keeps the balance.}) ({Predecessor:} 12... Rc8 13. Kb1 b6 14. Ba6 Rb8 15. Bb5 Rc8 16. h4 Nce5 17. h5 Bxd5 18. exd5 Qc7 19. hxg6 fxg6 {1-0 Medina Garcia,A-Alonso Leira,J Madrid Gran Torneo 1943 (11)}) 13. exd5 $16 {[%emt 0:00:11]} Nce5 {[%emt 0:08:13]} 14. Bh6 {[%emt 0:02:27]} Bxh6 {[%emt 0:07:12]} 15. Qxh6 {[%emt 0:00:07]} Qc7 {[%emt 0:01:06]} 16. Rd4 {[%emt 0:04:27]} Rfc8 {[%emt 0:01:13][%csl Gc8][%cal Rc7c2]} 17. c3 {[%emt 0:01:23] Active counter play!} Nf6 {[%emt 0:03:07]} 18. h4 {[%emt 0:15:50][%cal Bh2h4,Bh4h5][%mdl 32]} Ned7 {[%emt 0:08:11]} ({Black should try} 18... Qd8 $14) 19. h5 {[%emt 0:06:24]} Nc5 $2 {[%emt 0:03:18] [#]} (19... Qd8 20. hxg6 fxg6) 20. Nd2 $2 {[%emt 0:02:54]} (20. Nxc5 $1 $18 {[%cal Oh5g6] and the rest is easy. hxg6! would be deadly.} dxc5 21. d6) 20... Qd8 {[%emt 0:04:54]} 21. hxg6 {[%emt 0:03:06]} fxg6 {[%emt 0:00:01]} 22. g4 {[%emt 0:03:46][%cal Bg2g4,Bg4g5][%mdl 32]} Qf8 {[%emt 0:01:54]} 23. Qe3 {[%emt 0:00:45]} Qf7 {[%emt 0:01:14]} 24. g5 {[%emt 0:01:49]} Nh5 {[%emt 0:01:10]} 25. Bh3 $36 {[%emt 0:00:20][%mdl 2048] White has some pressure.} Ng3 {[%emt 0:02:39]} (25... Rc7 $11 {remains equal.}) 26. Rh2 {[%emt 0:00:33]} (26. Rc4 {seems wilder.} Nxh1 27. Rxc5 Rxc5 28. Be6) 26... Nf5 $2 {[%emt 0:02:51]} (26... Rc7 $16) 27. Bxf5 $18 {[%emt 0:00:28]} gxf5 {[%emt 0:01:04]} 28. Rdh4 {[%emt 0:02:26]} Qxd5 {[%emt 0:00:13]} 29. Qxe7 {[%emt 0:06:48]} Qf7 {[%emt 0:00:14]} 30. Qxd6 {[%emt 0:08:08] White wants to mate with Rxh7.} (30. Rxh7 Qxe7 31. Rxe7 Re8 $18) 30... Ra6 {[%emt 0:00:46]} 31. Qd4 {[%emt 0:00:26]} Ne6 {[%emt 0:00:42]} 32. Qd5 {[%emt 0:06:36]} Rd8 {[%emt 0:00:35]} 33. Qb3 {[%emt 0:00:12] Strongly threatening Rxh7.} Nf8 {[%emt 0:01:21]} 34. Qxf7+ {[%emt 0:00:33]} Kxf7 {[%emt 0:00:01]} 35. Nc4 {[%emt 0:00:21]} Re8 {[%emt 0:01:02]} 36. Rh6 {[%emt 0:00:51]} Re1+ {[%emt 0:00:34]} 37. Kd2 {[%emt 0:01:05]} Rg1 {[%emt 0:00:25]} 38. Rxa6 {[%emt 0:02:24]} bxa6 {[%emt 0:00:01]} 39. Nxa5 {[%emt 0:00:42]} Rxg5 {[%emt 0:00:15][%mdl 4096] Endgame KRN-KRN} 40. Nc6 {[%emt 0:00:15]} Rg3 {[%emt 0:01:25]} 41. b4 {[%emt 0:30:24]} Kg6 {[%emt 0:08:18]} 42. Nd4 {[%emt 0:00:00]} Rg1 {[%emt 0:02:15]} 43. a5 {[%emt 0:00:00]} (43. b5 Ra1 44. Rg2+ (44. bxa6 Rxa4 45. Rg2+ Kf6 $16) 44... Kf6 $18) 43... Nd7 {[%emt 0:02:03]} 44. Ne2 {[%emt 0:00:00]} (44. b5 Ra1 $16) 44... Rf1 {[%emt 0:03:39]} 45. Nf4+ {[%emt 0:00:00]} Kg5 {[%emt 0:01:54]} 46. Ne6+ {[%emt 0:00:00]} Kg6 {[%emt 0:01:15]} 47. Ke2 {[%emt 0:00:00]} Rc1 {[%emt 0:01:14] Threatens to win with ...Rc2+.} 48. Kd2 {[%emt 0:00:00] Inhibits Rc2+.} ({Better is} 48. Nf4+ $18 Kg7 49. Kd2) 48... Ra1 $2 {[%emt 0:01:09][%mdl 8192]} (48... Rf1 $1 $11 {and Black has nothing to worry.}) 49. Ke3 {[%emt 0:00:00]} Re1+ {[%emt 0:04:33]} 50. Re2 {[%emt 0:00:00]} Rd1 {[%emt 0:00:48]} (50... Rc1 {was worth a try.} 51. Kd2 Ra1) 51. Nf4+ {[%emt 0:00:00]} Kf6 {[%emt 0:01:14]} 52. Rd2 {[%emt 0:00:00]} Rxd2 {[%emt 0:00:15]} 53. Kxd2 {[%emt 0:00:00] KN-KN} Ke5 {[%emt 0:03:24]} 54. Ke3 {[%emt 0:00:00]} Nb8 {[%emt 0:00:48]} 55. c4 {[%emt 0:00:00]} Nc6 {[%emt 0:00:20]} 56. Nd3+ {[%emt 0:00:00]} Kf6 {[%emt 0:00:17]} 57. f4 {[%emt 0:00:00]} h6 {[%emt 0:01:32]} 58. Kf2 {[%emt 0:00:00]} Ke7 {[%emt 0:01:04]} 59. Kg3 {[%emt 0:00:00]} Kf6 {[%emt 0:00:45]} 60. Kh4 {[%emt 0:00:00]} Kg7 {[%emt 0:00:20]} 61. Kh5 {[%emt 0:00:53]} Kh7 {[%emt 0:00:12]} 62. b5 $2 {[%emt 0:04:30]} ({Only move:} 62. c5 $18) 62... axb5 $14 {[%emt 0:00:17]} 63. cxb5 {[%emt 0:00:08]} Nxa5 {[%emt 0:00:12]} 64. b6 {[%emt 0:00:03] Nc5 would kill now.} Nb7 $1 {[%emt 0:01:00] Against Nc5} 65. Ne5 {[%emt 0:03:33]} Kg7 {[%emt 0:00:59]} 66. Nf3 {[%emt 0:00:04]} Kf6 {[%emt 0:02:35]} 67. Nd4 {[%emt 0:00:10]} Ke7 {[%emt 0:00:51]} 68. Nxf5+ {[%emt 0:00:21]} Kd7 $1 {[%emt 0:00:10]} 69. Nd4 {[%emt 0:00:24][%cal Of4f5] Intending f5! and mate.} (69. Kxh6 $6 Kc6 70. Nd4+ Kxb6 $16) 69... Kd6 $2 {[%emt 0:00:29][%mdl 8192] [#] Wards off f5} (69... Nd6 $11) 70. f5 $1 {[%emt 0:00:28] White mates.} ({Less strong is} 70. Kxh6 Kc5 $16) 70... Ke5 {[%emt 0:01:02] [#]} 71. Kg6 $1 {[%emt 0:00:11]} Kd6 {[%emt 0:00:36]} (71... Nc5 72. f6) 72. f6 {[%emt 0:00:45]} Nd8 {[%emt 0:00:04]} 73. Kg7 {[%emt 0:04:19]} h5 {[%emt 0:00:28] [#]} 74. b7 $1 {[%emt 0:00:42][%mdl 512]} Kc7 {[%emt 0:00:46] [#]} 75. b8=Q+ $1 {[%emt 0:00:28][%mdl 576] Promotion} Kxb8 {[%emt 0:00:07] [#]} 76. Nc6+ $1 {[%emt 0:00:09][%mdl 576] Deflection, Promotion} Nxc6 {[%emt 0:01:03]} 77. f7 {[%emt 0:00:03]} Kc7 {[%emt 0:00:28]} 78. f8=Q {[%emt 0:00:08]} ({Worse is} 78. f8=B Kd8 $11) 78... Nd8 {[%emt 0:00:31]} 79. Qc5+ {[%emt 0:00:16] Weighted Error Value: White=0.35/Black=0.62} 1-0

[Event "Marienbad B1-IM 2024"]
[Site "Marianske Lazne"]
[Date "2024.01.16"]
[Round "4.11"]
[White "Jurek, Josef"]
[Black "Hak, David"]
[Result "0-1"]
[ECO "E69"]
[WhiteElo "2242"]
[BlackElo "2310"]
[Annotator "TA"]
[PlyCount "66"]
[EventDate "2024.01.10"]
[EventType "tourn"]
[EventCountry "CZE"]
[SourceTitle "playchess.com"]
[Source "ChessBase"]
[SourceQuality "1"]
[TimeControl "40/5400+30:1800+30"]

{[%evp 22,66,26,14,12,16,28,15,13,26,22,5,5,4,9,-26,-25,-35,-8,-38,0,-50,-50,-53,-53,-19,-16,-20,0,0,175,177,183,-387,-374,-353,-327,-29991,-29992,-29992,-29993,-29993,-29993,-29993,-29994,-29994,-29995]} 1. Nf3 {[%emt 0:00:02]} Nf6 {[%emt 0:02:50]} 2. c4 {[%emt 0:00:16]} g6 {[%emt 0:00:05]} 3. d4 {[%emt 0:00:21]} Bg7 {[%emt 0:00:08]} 4. g3 {[%emt 0:00:17]} O-O {[%emt 0:00:12]} 5. Bg2 {[%emt 0:00:11]} d6 {[%emt 0:00:11]} 6. Nc3 {[%emt 0:00:13]} Nbd7 {[%emt 0:00:15]} 7. O-O {[%emt 0:00:27]} c6 {[%emt 0:00:10]} 8. e4 {[%emt 0:01:08]} e5 {[%emt 0:00:11]} 9. h3 {[%emt 0:00:20]} Qb6 {[%emt 0:00:23]} 10. Re1 {[%emt 0:01:37]} exd4 {[%emt 0:00:32]} 11. Nxd4 {[%emt 0:00:24]} Re8 {[%emt 0:00:41]} 12. Na4 {[%emt 0:04:12]} Qa5 {[%emt 0:00:06][%cal Of6e4] E69: King's Indian: Fianchetto: 6...Nbd7 7 0-0 e5 8 e4 c6 9 h3.} 13. Bd2 {[%emt 0:03:16]} Qc7 {[%emt 0:03:34][%cal Of6e4]} 14. Bf4 {[%emt 0:05:14]} Ne5 {[%emt 0:03:48] The position is equal.} 15. Rc1 {[%emt 0:02:51]} Nfd7 {[%emt 0:03:15]} 16. b3 {[%emt 0:12:05]} Nc5 {[%emt 0:02:38] [#]} 17. Nxc5 $146 {[%emt 0:02:06]} ({Predecessor:} 17. Nb2 a5 18. Be3 a4 19. bxa4 Ned7 20. Qc2 Nb6 21. Red1 Nbxa4 22. Nxa4 Nxa4 23. Bf4 Qe7 24. Qb1 {0-1 Dezan,P-Grivas,E (2200) FRA U16-ch International 1982 (9)}) 17... dxc5 {[%emt 0:00:08]} 18. Bxe5 {[%emt 0:06:54]} Bxe5 {[%emt 0:02:50]} 19. Nf3 {[%emt 0:01:09]} Bf6 {[%emt 0:05:53]} 20. e5 {[%emt 0:08:00][%mdl 64] Deflection} Bxe5 {[%emt 0:09:03]} 21. Nxe5 {[%emt 0:01:19]} ({White should play} 21. Qe2 $1 $11) 21... Rxe5 $15 {[%emt 0:00:11]} 22. Rxe5 {[%emt 0:00:20]} Qxe5 {[%emt 0:00:11]} 23. Qd8+ {[%emt 0:00:34]} Kg7 {[%emt 0:00:11]} 24. Rd1 {[%emt 0:01:43]} Rb8 {[%emt 0:20:21][%cal Oc8h3] Threatens to win with ...Bxh3!} (24... Bg4 {simplifies} 25. Qxa8 Bxd1 26. Qxb7 Qe1+) 25. Rd6 {[%emt 0:14:18]} Qe1+ $2 {[%emt 0:05:16]} (25... Ra8 $1 $11 {and Black stays safe.}) 26. Kh2 $18 {[%emt 0:01:10] Qf6+ is the strong threat.} Qxf2 {[%emt 0:00:29][%cal Oc8h3] ...Bxh3! would be deadly.} 27. Qc7 $4 {[%emt 0:10:05][%mdl 8192] [#]} (27. Qe7 $18 {was the only winning move.}) 27... Bxh3 $1 $19 {[%emt 0:05:20][%mdl 512]} 28. Kxh3 {[%emt 0:00:59]} (28. Qxb8 $2 Qxg2#) 28... Re8 {[%emt 0:00:29] ( -> ...Qf5+)} 29. Bxc6 $2 {[%emt 0:12:39]} (29. Rd7 $19 Qf5+ 30. g4 Re3+ 31. Kh2) 29... Qf5+ {[%emt 0:03:43] Black mates.} 30. Kh2 {[%emt 0:00:15]} Re2+ {[%emt 0:01:20]} 31. Bg2 {[%emt 0:00:21]} Qh5+ {[%emt 0:00:16]} ({Worse is} 31... Rxa2 32. Rd5 Qe4 33. Qe5+ Qxe5 34. Rxe5 $11) 32. Kg1 {[%emt 0:00:24]} Re1+ {[%emt 0:00:12]} 33. Bf1 {[%emt 0:00:18]} Qf3 {[%emt 0:00:14][%csl LRf1,LRg3] Weighted Error Value: White=0.68/Black=0.13 (very precise)} 0-1

[Event "Marienbad B1-IM 2024"]
[Site "Marianske Lazne"]
[Date "2024.01.16"]
[Round "4.12"]
[White "Kulkarni Bhakti"]
[Black "Dobrowolski, Piotr"]
[Result "1/2-1/2"]
[ECO "A35"]
[WhiteElo "2364"]
[BlackElo "2401"]
[Annotator "TA"]
[PlyCount "31"]
[EventDate "2024.01.10"]
[EventType "tourn"]
[EventCountry "CZE"]
[SourceTitle "playchess.com"]
[Source "ChessBase"]
[SourceQuality "1"]
[TimeControl "40/5400+30:1800+30"]

{[%evp 9,18,19,15,0,0,0,0,0,0,0,27]} 1. Nf3 {[%emt 0:06:32]} c5 {[%emt 0:00:14]} 2. c4 {[%emt 0:00:46]} Nc6 {[%emt 0:01:55]} 3. Nc3 {[%emt 0:01:02]} Nf6 {[%emt 0:00:54]} 4. e3 {[%emt 0:02:21]} e5 {[%emt 0:03:03]} 5. d4 {[%emt 0:00:43]} e4 {[%emt 0:00:25] The position is equal.} 6. d5 {[%emt 0:00:19] Hoping for Ng5. A34: Symmetrical English: 2 Nc3, lines with ...d5.} exf3 {[%emt 0:01:53]} 7. dxc6 {[%emt 0:02:13]} dxc6 {[%emt 0:00:13] 7...bxc6 is vanishing.} 8. Qxd8+ {[%emt 0:01:03]} Kxd8 {[%emt 0:00:32]} 9. gxf3 {[%emt 0:00:06]} g6 {[%emt 0:01:54] [#] A rather calm draw.} {Predecessor:} 10. b3 $146 Bg7 11. Bb2 Ke7 12. O-O-O Be6 13. Be2 Rhd8 14. f4 Rxd1+ 15. Rxd1 b6 16. Bf3 {0-1 Predke,A (2673)-Karjakin,S (2757) Moscow Smyslov Region Group Cup blitz 2021 (7)} 1/2-1/2

[Event "Marienbad B1-IM 2024"]
[Site "Marianske Lazne"]
[Date "2024.01.16"]
[Round "4.13"]
[White "Zdybel, Przemyslaw"]
[Black "Lima, Stefan Moisei VIeira"]
[Result "1-0"]
[ECO "D92"]
[WhiteElo "2180"]
[BlackElo "2173"]
[Annotator "NA RC"]
[PlyCount "57"]
[EventDate "2024.01.10"]
[EventType "tourn"]
[EventCountry "CZE"]
[SourceTitle "playchess.com"]
[Source "ChessBase"]
[SourceQuality "1"]
[TimeControl "40/5400+30:1800+30"]

1. d4 {[%emt 0:00:27]} Nf6 {[%emt 0:05:23]} 2. c4 {[%emt 0:00:23]} g6 {[%emt 0:00:20]} 3. Nc3 {[%emt 0:00:09]} d5 {[%emt 0:00:17]} 4. Nf3 {[%emt 0:01:53]} Bg7 {[%emt 0:00:20]} 5. Bf4 {[%emt 0:00:34]} O-O {[%emt 0:02:22]} 6. Rc1 {[%emt 0:00:11]} Be6 {[%emt 0:12:12]} 7. e3 {[%emt 0:01:59]} dxc4 {[%emt 0:03:26]} 8. Ng5 {[%emt 0:00:05]} Bd5 {[%emt 0:00:12]} 9. e4 {[%emt 0:00:10]} h6 {[%emt 0:00:06]} 10. exd5 {[%emt 0:00:10]} hxg5 {[%emt 0:00:08]} 11. Bxg5 {[%emt 0:00:05]} Nxd5 {[%emt 0:00:14]} 12. Bxc4 {[%emt 0:00:04]} Nb6 {[%emt 0:01:47]} 13. Bb3 {[%emt 0:00:05]} Nc6 {[%emt 0:01:14]} 14. d5 {[%emt 0:00:04]} Nd4 {[%emt 0:01:04]} 15. O-O {[%emt 0:02:59]} Qd7 {[%emt 0:03:08]} 16. Re1 {[%emt 0:05:05]} Rfe8 {[%emt 0:01:35]} 17. h4 {[%emt 0:00:27]} Rad8 {[%emt 0:07:36]} 18. a4 {[%emt 0:10:54]} a5 {[%emt 0:12:39]} 19. Ba2 {[%emt 0:05:30]} Nc8 {[%emt 0:06:23]} 20. Ne4 {[%emt 0:14:23]} b6 {[%emt 0:03:12]} 21. h5 {[%emt 0:05:32]} gxh5 {[%emt 0:01:09]} 22. Qxh5 {[%emt 0:08:19]} Nd6 {[%emt 0:06:20]} 23. Bb1 {[%emt 0:02:26]} N6f5 {[%emt 0:05:20]} 24. Nc3 {[%emt 0:17:52]} Qc8 {[%emt 0:08:56]} 25. Re4 {[%emt 0:03:50]} Rd6 {[%emt 0:01:46]} 26. Rce1 {[%emt 0:00:48]} Qd7 {[%emt 0:02:35]} 27. Rf4 {[%emt 0:04:41]} Rg6 {[%emt 0:00:49]} 28. g4 {[%emt 0:03:16]} Qd6 {[%emt 0:00:46]} 29. Rxf5 {[%emt 0:03:17]} 1-0

[Event "Marienbad B1-IM 2024"]
[Site "Marianske Lazne"]
[Date "2024.01.16"]
[Round "4.14"]
[White "Ashwath, R.."]
[Black "Ni, Viktorija"]
[Result "1-0"]
[ECO "E70"]
[WhiteElo "2284"]
[BlackElo "2138"]
[Annotator "NA RC"]
[PlyCount "53"]
[EventDate "2024.01.10"]
[EventType "tourn"]
[EventCountry "CZE"]
[SourceTitle "playchess.com"]
[Source "ChessBase"]
[SourceQuality "1"]
[TimeControl "40/5400+30:1800+30"]

1. d4 {[%emt 0:12:37]} Nf6 {[%emt 0:00:05]} 2. c4 {[%emt 0:00:43]} g6 {[%emt 0:00:05]} 3. Nc3 {[%emt 0:00:10]} Bg7 {[%emt 0:00:08]} 4. e4 {[%emt 0:00:08]} d6 {[%emt 0:00:17]} 5. h4 {[%emt 0:01:15]} c5 {[%emt 0:05:00]} 6. d5 {[%emt 0:00:21]} h6 {[%emt 0:08:29]} 7. Be2 {[%emt 0:03:40]} e6 {[%emt 0:03:45]} 8. h5 {[%emt 0:07:27]} g5 {[%emt 0:04:37]} 9. f4 {[%emt 0:02:53]} gxf4 {[%emt 0:13:14]} 10. Bxf4 {[%emt 0:02:05]} e5 {[%emt 0:11:47]} 11. Bd2 {[%emt 0:11:49]} b5 {[%emt 0:06:30]} 12. cxb5 {[%emt 0:02:09]} a6 {[%emt 0:00:57]} 13. Nf3 {[%emt 0:08:30]} Rg8 {[%emt 0:24:20]} 14. Nh4 {[%emt 0:05:02]} Nh7 {[%emt 0:04:43]} 15. bxa6 {[%emt 0:02:16]} Bf6 {[%emt 0:02:20]} 16. Bb5+ {[%emt 0:01:49]} Ke7 {[%emt 0:05:39]} 17. Qf3 {[%emt 0:04:29]} Rg4 {[%emt 0:06:18]} 18. Nf5+ {[%emt 0:03:21]} Bxf5 {[%emt 0:00:02]} 19. Qxf5 {[%emt 0:00:06]} Qg8 {[%emt 0:00:10]} 20. O-O-O {[%emt 0:06:22]} Rf4 {[%emt 0:01:22]} 21. Bxf4 {[%emt 0:04:09]} exf4 {[%emt 0:00:02]} 22. Na4 {[%emt 0:02:04]} Ra7 {[%emt 0:01:06]} 23. Nb6 {[%emt 0:02:05]} Qxg2 {[%emt 0:00:28]} 24. Nc4 {[%emt 0:00:13]} Nxa6 {[%emt 0:00:35]} 25. e5 {[%emt 0:00:25]} dxe5 {[%emt 0:00:23]} 26. d6+ {[%emt 0:00:30]} Kd8 {[%emt 0:00:22]} 27. Rhg1 {[%emt 0:00:16]} 1-0

[Event "Marienbad B1-IM 2024"]
[Site "Marianske Lazne"]
[Date "2024.01.16"]
[Round "4.15"]
[White "Rasmussen, Casper"]
[Black "Ochedzan, Tymon"]
[Result "1/2-1/2"]
[ECO "A05"]
[WhiteElo "2265"]
[BlackElo "2166"]
[Annotator "RC"]
[PlyCount "34"]
[EventDate "2024.01.10"]
[EventType "tourn"]
[EventCountry "CZE"]
[SourceTitle "playchess.com"]
[Source "ChessBase"]
[SourceQuality "1"]
[TimeControl "40/5400+30:1800+30"]

1. Nf3 {[%emt 0:00:04]} Nf6 {[%emt 0:01:00]} 2. c4 {[%emt 0:00:06]} g6 {[%emt 0:00:23]} 3. g3 {[%emt 0:00:07]} Bg7 {[%emt 0:00:25]} 4. Bg2 {[%emt 0:00:03]} O-O {[%emt 0:02:26]} 5. O-O {[%emt 0:00:09]} d6 {[%emt 0:02:05]} 6. d4 {[%emt 0:00:21]} Nc6 {[%emt 0:01:27]} 7. Nc3 {[%emt 0:01:18]} Rb8 {[%emt 0:00:15]} 8. b3 {[%emt 0:08:08]} a6 {[%emt 0:00:49]} 9. a4 {[%emt 0:03:14]} a5 {[%emt 0:01:09]} 10. h3 {[%emt 0:05:35]} Nb4 {[%emt 0:10:54]} 11. e4 {[%emt 0:02:45]} e5 {[%emt 0:05:29]} 12. Bg5 {[%emt 0:04:36]} c6 {[%emt 0:10:28]} 13. Qd2 {[%emt 0:05:29]} Re8 {[%emt 0:03:20]} 14. Rad1 {[%emt 0:03:47]} Qc7 {[%emt 0:02:02]} 15. Rfe1 {[%emt 0:04:26]} b6 {[%emt 0:07:29]} 16. Kh2 {[%emt 0:09:44]} Ra8 {[%emt 0:07:38]} 17. Re2 {[%emt 0:09:17]} Rb8 {[%emt 0:01:39]} 1/2-1/2

[Event "Marienbad B1-IM 2024"]
[Site "Marianske Lazne"]
[Date "2024.01.16"]
[Round "5.11"]
[White "Ochedzan, Tymon"]
[Black "Jurek, Josef"]
[Result "1-0"]
[ECO "C10"]
[WhiteElo "2166"]
[BlackElo "2242"]
[Annotator "NA RC"]
[PlyCount "33"]
[EventDate "2024.01.10"]
[EventType "tourn"]
[EventCountry "CZE"]
[SourceTitle "playchess.com"]
[Source "ChessBase"]
[SourceQuality "1"]
[TimeControl "40/5400+30:1800+30"]

1. e4 {[%emt 0:00:02]} e6 {[%emt 0:00:21]} 2. d4 {[%emt 0:00:05]} d5 {[%emt 0:00:12]} 3. Nc3 {[%emt 0:00:06]} Nc6 {[%emt 0:00:23]} 4. Nf3 {[%emt 0:00:45]} Nf6 {[%emt 0:00:22]} 5. e5 {[%emt 0:00:41]} Ne4 {[%emt 0:00:16]} 6. Ne2 {[%emt 0:00:13]} Bd7 {[%emt 0:00:16]} 7. Nf4 {[%emt 0:05:09]} f6 {[%emt 0:09:11]} 8. Bd3 {[%emt 0:05:54]} fxe5 {[%emt 0:07:53]} 9. dxe5 {[%emt 0:11:59]} Qe7 {[%emt 0:11:52]} 10. O-O {[%emt 0:11:31]} O-O-O {[%emt 0:01:50]} 11. c4 {[%emt 0:05:54]} g5 {[%emt 0:05:01]} 12. cxd5 {[%emt 0:04:06]} exd5 {[%emt 0:01:59]} 13. Nxd5 {[%emt 0:03:14]} Qc5 {[%emt 0:02:16]} 14. Bxe4 {[%emt 0:00:17]} Be6 {[%emt 0:02:00]} 15. Bxg5 {[%emt 0:04:46]} Bxd5 {[%emt 0:01:41]} 16. Bf5+ {[%emt 0:01:54]} Kb8 {[%emt 0:00:42]} 17. Bxd8 {[%emt 0:02:42]} 1-0